[Event "URU-ch Semi Final 2020"]
[Site "Montevideo"]
[Date "2020.02.22"]
[Round "2.10"]
[White "Garcia, Matias"]
[Black "Granara Barreto, Sebastian"]
[Result "1/2-1/2"]
[ECO "B23"]
[WhiteElo "1810"]
[BlackElo "2132"]
[Annotator "NA"]
[PlyCount "154"]
[EventDate "2020.02.22"]
[EventType "swiss"]
[EventCountry "URU"]
[SourceTitle "playchess.com"]
[Source "ChessBase"]
[SourceQuality "1"]
[TimeControl "5400+30"]

1. e4 {[%emt 0:00:00]} c5 {[%emt 0:00:07]} 2. Nc3 {[%emt 0:00:00]} Nc6 {[%emt 0:00:06]} 3. f4 {[%emt 0:00:00]} g6 {[%emt 0:00:48]} 4. Nf3 {[%emt 0:00:06]} Bg7 {[%emt 0:00:05]} 5. Bb5 {[%emt 0:03:02]} Nd4 {[%emt 0:02:36]} 6. O-O {[%emt 0:00:40]} Nxb5 {[%emt 0:03:32]} 7. Nxb5 {[%emt 0:00:08]} a6 {[%emt 0:00:17]} 8. Nc3 {[%emt 0:00:13]} b5 {[%emt 0:02:12]} 9. d3 {[%emt 0:00:43]} Bb7 {[%emt 0:10:07]} 10. Qe1 {[%emt 0:01:45]} b4 {[%emt 0:11:18]} 11. Ne2 {[%emt 0:05:56]} d5 {[%emt 0:06:51]} 12. e5 {[%emt 0:03:34]} e6 {[%emt 0:00:55]} 13. Be3 {[%emt 0:02:18]} d4 {[%emt 0:03:10]} 14. Bd2 {[%emt 0:01:27]} Ne7 $11 {[%emt 0:04:35]} 15. Ng3 {[%emt 0:02:06]} h6 {[%emt 0:04:00]} 16. Ne4 {[%emt 0:01:51]} Bxe4 {[%emt 0:00:34]} 17. Qxe4 {[%emt 0:02:23]} Qd5 {[%emt 0:00:08]} 18. Qe2 {[%emt 0:03:02]} O-O {[%emt 0:01:11]} 19. Rf2 {[%emt 0:03:38]} a5 {[%emt 0:05:08]} 20. g4 {[%emt 0:07:40]} Rac8 {[%emt 0:02:21]} 21. b3 {[%emt 0:01:45]} a4 {[%emt 0:01:29]} 22. h4 axb3 {[%emt 0:00:32]} 23. axb3 {[%emt 0:08:16]} Ra8 {[%emt 0:00:05]} 24. Re1 {[%emt 0:01:57]} Ra2 {[%emt 0:01:27]} 25. Bc1 {[%emt 0:00:34]} Qd7 {[%emt 0:02:36]} 26. h5 {[%emt 0:08:11]} gxh5 {[%emt 0:01:27]} 27. Nh4 {[%emt 0:01:02]} Ng6 {[%emt 0:15:10]} 28. Nxg6 {[%emt 0:01:39]} fxg6 {[%emt 0:00:03]} 29. gxh5 {[%emt 0:01:33]} gxh5 {[%emt 0:02:35]} 30. Qxh5 {[%emt 0:02:46]} Qf7 {[%emt 0:02:37]} 31. Qf3 {[%emt 0:03:06]} Kh8 {[%emt 0:02:46]} 32. Ref1 {[%emt 0:03:39]} Qf5 {[%emt 0:01:57]} 33. Qg3 {[%emt 0:02:29]} Rg8 {[%emt 0:05:19]} 34. Rg2 {[%emt 0:01:43]} Rxc2 {[%emt 0:04:35]} 35. Rxc2 {[%emt 0:03:00]} Bf8 {[%emt 0:00:03]} 36. Qxg8+ {[%emt 0:02:21]} Kxg8 {[%emt 0:00:02]} 37. Rf3 {[%emt 0:00:50]} Kf7 {[%emt 0:00:32]} 38. Ra2 {[%emt 0:01:07]} Qg4+ {[%emt 0:01:30]} 39. Kf2 {[%emt 0:00:01]} Qh4+ {[%emt 0:00:07]} 40. Ke2 {[%emt 0:00:18]} Qh2+ {[%emt 0:01:27]} 41. Rf2 {[%emt 0:00:02]} Qh1 {[%emt 0:00:20]} 42. Rf1 {[%emt 0:01:33]} Qg2+ {[%emt 0:01:17]} 43. Rf2 {[%emt 0:00:05]} Qd5 {[%emt 0:00:08]} 44. Ra7+ {[%emt 0:02:10]} Ke8 {[%emt 0:01:41]} 45. Bd2 {[%emt 0:01:54]} Qxb3 {[%emt 0:00:25]} 46. Rg2 {[%emt 0:00:35]} Qd5 {[%emt 0:01:14]} 47. Rg8 {[%emt 0:00:13]} b3 {[%emt 0:00:52]} 48. Bc1 Qh1 {[%emt 0:00:59]} 49. Ba3 {[%emt 0:04:16]} Qh2+ 50. Kf3 Qh1+ {[%emt 0:00:59]} 51. Kf2 {[%emt 0:02:38]} Qh4+ 52. Kf3 {[%emt 0:01:08]} Qh1+ {[%emt 0:01:02]} 53. Kf2 {[%emt 0:00:18]} Qd5 {[%emt 0:00:22]} 54. Rh8 {[%emt 0:04:30]} b2 {[%emt 0:00:37]} 55. Bxb2 {[%emt 0:00:53]} Qb3 56. Ba3 {[%emt 0:01:00]} Qc2+ {[%emt 0:00:17]} 57. Ke1 {[%emt 0:01:41]} Qxd3 {[%emt 0:00:52]} 58. Ra8+ {[%emt 0:02:02]} Kd7 {[%emt 0:00:13]} 59. Rhxf8 {[%emt 0:00:22]} Qe3+ {[%emt 0:00:31]} 60. Kd1 {[%emt 0:00:57]} Qd3+ {[%emt 0:00:58]} 61. Ke1 {[%emt 0:01:04]} Qe3+ {[%emt 0:00:10]} 62. Kd1 {[%emt 0:00:11]} Qd3+ {[%emt 0:00:44]} 63. Ke1 {[%emt 0:00:01]} Qe3+ {[%emt 0:00:03]} 64. Kd1 {[%emt 0:00:16]} d3 {[%emt 0:01:05]} 65. Rfd8+ {[%emt 0:03:01]} Ke7 {[%emt 0:00:27]} 66. Bxc5+ {[%emt 0:00:59]} Qxc5 {[%emt 0:00:06]} 67. Rdc8 {[%emt 0:01:09]} Qg1+ {[%emt 0:00:35]} 68. Kd2 {[%emt 0:00:09]} Qf2+ {[%emt 0:00:45]} 69. Kxd3 {[%emt 0:00:08]} Qf3+ {[%emt 0:00:52]} 70. Kc2 {[%emt 0:00:30]} Qe4+ {[%emt 0:00:08]} 71. Kd1 {[%emt 0:00:30]} Kf7 {[%emt 0:00:53]} 72. Rg8 {[%emt 0:01:37]} Qd3+ {[%emt 0:00:22]} 73. Ke1 {[%emt 0:00:27]} Qe3+ {[%emt 0:00:22]} 74. Kd1 {[%emt 0:00:16]} Qd3+ {[%emt 0:00:32]} 75. Ke1 {[%emt 0:00:18]} Qe3+ {[%emt 0:00:31]} 76. Kd1 {[%emt 0:00:01]} Qd3+ {[%emt 0:00:07]} 77. Ke1 {[%emt 0:00:04]} Qe3+ 1/2-1/2

[Event "URU-ch Semi Final 2020"]
[Site "Montevideo"]
[Date "2020.02.22"]
[Round "2.11"]
[White "Lanzilotta, Marcelo"]
[Black "Soto, Nicolas"]
[Result "1-0"]
[ECO "C01"]
[WhiteElo "2003"]
[BlackElo "2002"]
[Annotator "NA"]
[PlyCount "75"]
[EventDate "2020.02.22"]
[EventType "swiss"]
[EventCountry "URU"]
[SourceTitle "playchess.com"]
[Source "ChessBase"]
[SourceQuality "1"]
[TimeControl "5400+30"]

1. e4 {[%emt 0:20:42]} e6 {[%emt 0:00:00]} 2. d4 {[%emt 0:00:18]} d5 {[%emt 0:00:00]} 3. exd5 {[%emt 0:00:07]} exd5 {[%emt 0:00:00]} 4. Nc3 {[%emt 0:00:06]} Nc6 {[%emt 0:12:19]} 5. Bf4 {[%emt 0:03:41]} Bb4 {[%emt 0:00:47]} 6. a3 {[%emt 0:03:12]} Ba5 {[%emt 0:01:15]} 7. Qd3 {[%emt 0:03:42]} Nge7 {[%emt 0:04:05]} 8. O-O-O $11 {[%emt 0:01:47]} Bxc3 {[%emt 0:05:23]} 9. Qxc3 {[%emt 0:00:52]} Bf5 {[%emt 0:03:06]} 10. h3 {[%emt 0:06:14]} Qd7 {[%emt 0:08:07]} 11. g4 Bg6 {[%emt 0:01:26]} 12. Nf3 {[%emt 0:06:35]} f6 {[%emt 0:00:06]} 13. h4 {[%emt 0:04:25]} h5 {[%emt 0:02:26]} 14. g5 {[%emt 0:15:02]} O-O-O {[%emt 0:00:50]} 15. Nd2 {[%emt 0:04:18]} Kb8 {[%emt 0:09:15]} 16. Nb3 {[%emt 0:00:20]} b6 {[%emt 0:05:00]} 17. Bb5 {[%emt 0:01:10]} Qf5 {[%emt 0:00:30]} 18. Bg3 {[%emt 0:01:36]} Be8 {[%emt 0:07:22]} 19. Rhe1 {[%emt 0:02:26]} Bd7 {[%emt 0:11:41]} 20. Bxc7+ {[%emt 0:05:28]} Ka8 {[%emt 0:05:29]} 21. Bxd8 {[%emt 0:06:20]} Rxd8 {[%emt 0:00:02]} 22. Rd2 {[%emt 0:03:10]} Rc8 {[%emt 0:03:08]} 23. Qg3 {[%emt 0:00:57]} Kb7 {[%emt 0:05:26]} 24. Qd6 {[%emt 0:02:24]} Rd8 {[%emt 0:04:31]} 25. Rxe7 {[%emt 0:00:33]} Nxe7 {[%emt 0:00:11]} 26. Qxe7 {[%emt 0:00:16]} Kc7 {[%emt 0:01:19]} 27. Qxg7 {[%emt 0:01:14]} fxg5 {[%emt 0:00:07]} 28. Bxd7 {[%emt 0:00:59]} Rxd7 {[%emt 0:00:18]} 29. Qxg5 {[%emt 0:00:06]} Qf3 {[%emt 0:00:33]} 30. Qe5+ {[%emt 0:00:46]} Kb7 {[%emt 0:00:15]} 31. Qg3 {[%emt 0:01:57]} Qh1+ {[%emt 0:00:30]} 32. Rd1 {[%emt 0:00:01]} Qe4 {[%emt 0:00:08]} 33. f3 {[%emt 0:01:19]} Qf5 {[%emt 0:01:51]} 34. Re1 {[%emt 0:00:16]} Rc7 {[%emt 0:00:32]} 35. c3 {[%emt 0:00:31]} Qd3 {[%emt 0:00:38]} 36. Qe5 {[%emt 0:01:52]} Qxf3 {[%emt 0:03:17]} 37. Nd2 {[%emt 0:00:04]} Qf2 {[%emt 0:00:14]} 38. Qxd5+ {[%emt 0:00:03]} 1-0

[Event "URU-ch Semi Final 2020"]
[Site "Montevideo"]
[Date "2020.02.22"]
[Round "2.12"]
[White "Torales, Agustin"]
[Black "Rey Besada, Fernando"]
[Result "1/2-1/2"]
[ECO "C01"]
[WhiteElo "1623"]
[BlackElo "2135"]
[Annotator "NA"]
[PlyCount "52"]
[EventDate "2020.02.22"]
[EventType "swiss"]
[EventCountry "URU"]
[SourceTitle "playchess.com"]
[Source "ChessBase"]
[SourceQuality "1"]
[TimeControl "5400+30"]

1. e4 {[%emt 0:00:00]} e6 {[%emt 0:00:00]} 2. d4 {[%emt 0:00:00]} d5 {[%emt 0:00:00]} 3. exd5 {[%emt 0:00:00]} exd5 {[%emt 0:00:04]} 4. Bd3 {[%emt 0:00:12]} Bd6 {[%emt 0:00:21]} 5. Nf3 {[%emt 0:00:56]} Bg4 {[%emt 0:00:07]} 6. h3 {[%emt 0:00:15]} Bh5 {[%emt 0:00:04]} 7. O-O {[%emt 0:00:45]} Ne7 {[%emt 0:00:05]} 8. Re1 {[%emt 0:04:02]} O-O {[%emt 0:01:07]} 9. Nbd2 {[%emt 0:06:30]} Nbc6 {[%emt 0:00:46]} 10. c3 {[%emt 0:00:20]} f6 {[%emt 0:01:35]} 11. Qc2 {[%emt 0:10:43]} Bg6 {[%emt 0:00:16]} 12. Nf1 {[%emt 0:08:43]} Bxd3 {[%emt 0:00:17]} 13. Qxd3 {[%emt 0:00:01]} Qd7 {[%emt 0:00:22]} 14. Ne3 {[%emt 0:03:16]} Bf4 $11 {[%emt 0:08:57]} 15. Nf5 {[%emt 0:15:11]} Bxc1 {[%emt 0:00:12]} 16. Nxe7+ {[%emt 0:00:02]} Nxe7 {[%emt 0:00:18]} 17. Raxc1 {[%emt 0:00:04]} Rfe8 {[%emt 0:06:44]} 18. Nh4 {[%emt 0:08:09]} Nc6 {[%emt 0:06:12]} 19. Nf5 {[%emt 0:06:19]} Rxe1+ {[%emt 0:00:34]} 20. Rxe1 {[%emt 0:00:02]} Re8 {[%emt 0:00:17]} 21. Rxe8+ {[%emt 0:00:42]} Qxe8 {[%emt 0:00:27]} 22. Qg3 {[%emt 0:01:58]} Qd7 {[%emt 0:02:52]} 23. Qg4 {[%emt 0:08:46]} Kh8 {[%emt 0:00:52]} 24. h4 {[%emt 0:05:00]} g6 {[%emt 0:00:17]} 25. Ne3 {[%emt 0:00:05]} Qxg4 {[%emt 0:00:06]} 26. Nxg4 {[%emt 0:00:01]} Kg7 {[%emt 0:00:26]} 1/2-1/2

[Event "URU-ch Semi Final 2020"]
[Site "Montevideo"]
[Date "2020.02.22"]
[Round "2.13"]
[White "Coppola, Claudio"]
[Black "Blanco, Rudemar Ernesto"]
[Result "1-0"]
[ECO "D00"]
[WhiteElo "2314"]
[BlackElo "1470"]
[Annotator "NA"]
[PlyCount "107"]
[EventDate "2020.02.22"]
[EventType "swiss"]
[EventCountry "URU"]
[SourceTitle "playchess.com"]
[Source "ChessBase"]
[SourceQuality "1"]
[TimeControl "5400+30"]

1. d4 {[%emt 0:15:59]} d5 2. Nc3 {[%emt 0:00:00]} Nf6 {[%emt 0:00:28]} 3. Bf4 c6 {[%emt 0:00:37]} 4. e3 {[%emt 0:00:26]} e6 {[%emt 0:01:11]} 5. Nf3 {[%emt 0:00:51]} Be7 {[%emt 0:02:11]} 6. Bd3 {[%emt 0:00:25] D00: 1 d4 d5: Unusual lines.} h6 {[%emt 0:02:09] [#]} 7. g4 $146 {[%emt 0:02:46]} ({Predecessor:} 7. O-O Nbd7 8. Ne5 O-O 9. Qf3 c5 10. Nxd7 Bxd7 11. dxc5 Bxc5 12. e4 Bc6 13. e5 {1-0 (25) Nielsen,M-Jensen,D Copenhagen 2001}) 7... b6 {[%emt 0:01:03]} 8. g5 {[%emt 0:02:03]} ({Better is} 8. Ne5 $14) 8... hxg5 {[%emt 0:02:28]} 9. Bxg5 {[%emt 0:02:48]} Ba6 {[%emt 0:00:55]} 10. Ne5 {[%emt 0:02:25]} Bxd3 {[%emt 0:01:06]} 11. cxd3 {[%emt 0:01:39]} Nfd7 {[%emt 0:00:46]} 12. Bxe7 {[%emt 0:02:42]} Qxe7 {[%emt 0:00:43]} 13. Qg4 {[%emt 0:02:08]} Nxe5 {[%emt 0:03:14]} 14. dxe5 {[%emt 0:00:02]} g6 {[%emt 0:04:08]} 15. h4 {[%emt 0:00:22]} Nd7 {[%emt 0:02:17]} 16. d4 {[%emt 0:03:16]} O-O-O {[%emt 0:00:44]} 17. O-O-O {[%emt 0:00:28]} Kb7 {[%emt 0:01:25]} 18. Qg5 {[%emt 0:03:34]} Rde8 {[%emt 0:05:23]} 19. Ne2 {[%emt 0:01:12]} Rh5 {[%emt 0:02:13]} 20. Qxe7 {[%emt 0:00:13]} Rxe7 $11 {[%emt 0:00:15]} 21. Nf4 {[%emt 0:01:02]} Rh8 {[%emt 0:02:03]} 22. Rdg1 {[%emt 0:08:48]} c5 {[%emt 0:03:52]} 23. Rg4 {[%emt 0:03:04]} Rc8 {[%emt 0:01:09]} 24. Kd2 {[%emt 0:00:10]} cxd4 {[%emt 0:01:27]} 25. exd4 {[%emt 0:00:03]} Nf8 {[%emt 0:00:13]} 26. Ne2 {[%emt 0:02:14]} Rec7 {[%emt 0:00:51]} 27. Nc3 {[%emt 0:00:30]} a6 {[%emt 0:02:45]} 28. Rf4 {[%emt 0:00:26]} b5 {[%emt 0:00:52]} 29. Rh3 {[%emt 0:03:03]} Re7 {[%emt 0:01:36]} 30. Nd1 {[%emt 0:05:20]} Nd7 {[%emt 0:02:08]} 31. Rhf3 {[%emt 0:00:28]} Rf8 {[%emt 0:00:24]} 32. Ne3 {[%emt 0:00:27]} Nb8 {[%emt 0:00:52]} 33. Ng4 {[%emt 0:00:38]} Nc6 {[%emt 0:00:12]} 34. Nh6 {[%emt 0:01:15]} Nd8 {[%emt 0:00:21]} 35. Rf6 {[%emt 0:01:09]} Rh8 {[%emt 0:04:49]} 36. Nxf7 {[%emt 0:00:15]} Nxf7 {[%emt 0:00:11]} 37. Rxf7 {[%emt 0:00:04]} Rxf7 {[%emt 0:00:30]} 38. Rxf7+ {[%emt 0:00:02]} Kc6 {[%emt 0:00:30]} 39. Re7 {[%emt 0:00:25]} Rxh4 {[%emt 0:00:35]} 40. Rxe6+ {[%emt 0:00:02]} Kb7 {[%emt 0:00:31]} 41. Kc3 {[%emt 0:01:09]} Rf4 {[%emt 0:01:15]} 42. Rxg6 {[%emt 0:00:57]} Rxf2 {[%emt 0:00:30]} 43. Rd6 {[%emt 0:00:14]} a5 {[%emt 0:02:34]} 44. Rxd5 {[%emt 0:02:23]} Kc6 {[%emt 0:00:31]} 45. Rd6+ {[%emt 0:00:30]} Kc7 {[%emt 0:00:11]} 46. Rf6 {[%emt 0:04:27]} Rh2 {[%emt 0:02:09]} 47. d5 {[%emt 0:00:33]} Rh3+ {[%emt 0:00:19]} 48. Kd4 {[%emt 0:00:07]} Rh4+ {[%emt 0:00:23]} 49. Kc5 {[%emt 0:00:12]} Rh2 {[%emt 0:01:10]} 50. d6+ {[%emt 0:00:22]} Kd8 {[%emt 0:00:56]} 51. e6 {[%emt 0:00:39]} Rc2+ {[%emt 0:00:47]} 52. Kxb5 {[%emt 0:00:05]} Rxb2+ {[%emt 0:00:14]} 53. Kc4 {[%emt 0:00:10]} Rd2 {[%emt 0:00:43]} 54. Rf8# 1-0

[Event "URU-ch Semi Final 2020"]
[Site "Montevideo"]
[Date "2020.02.22"]
[Round "2.14"]
[White "Campora, Edgardo"]
[Black "Muniz, Rafael"]
[Result "0-1"]
[ECO "B50"]
[WhiteElo "1676"]
[BlackElo "2232"]
[Annotator "NA"]
[PlyCount "61"]
[EventDate "2020.02.22"]
[EventType "swiss"]
[EventCountry "URU"]
[SourceTitle "playchess.com"]
[Source "ChessBase"]
[SourceQuality "1"]
[TimeControl "5400+30"]

1. e4 {[%emt 0:00:00]} c5 {[%emt 0:00:00]} 2. Nf3 {[%emt 0:00:00]} d6 {[%emt 0:00:00]} 3. c3 {[%emt 0:00:00]} Nf6 {[%emt 0:00:00]} 4. h3 {[%emt 0:00:00]} g6 {[%emt 0:00:00]} 5. Bd3 {[%emt 0:00:00]} Bg7 {[%emt 0:00:06]} 6. Bc2 {[%emt 0:00:00]} O-O {[%emt 0:00:09]} 7. d4 {[%emt 0:00:00]} cxd4 {[%emt 0:02:03]} 8. cxd4 {[%emt 0:00:06]} Nc6 {[%emt 0:00:12]} 9. a3 {[%emt 0:00:24]} e5 {[%emt 0:01:03]} (9... d5 $5 {[%cal Rd5e4]} 10. e5 Ne4 $11) 10. O-O {[%emt 0:07:13]} (10. d5 $11 Nd4 11. O-O (11. Nxd4 exd4 12. O-O Qb6 $11)) 10... Re8 $14 {[%emt 0:02:08]} (10... Nxd4 $17 11. Nxd4 exd4 12. Qxd4 Re8) 11. Nc3 {[%emt 0:02:06]} exd4 12. Nxd4 {[%emt 0:00:06]} Nxd4 {[%emt 0:01:43]} 13. Qxd4 {[%emt 0:14:39]} Nxe4 {[%emt 0:00:18]} 14. Qd3 {[%emt 0:00:07]} Nxc3 15. bxc3 {[%emt 0:00:30]} Bf5 {[%emt 0:01:28]} 16. Qd2 {[%emt 0:00:53]} Bxc2 {[%emt 0:00:37]} 17. Qxc2 {[%emt 0:00:07]} Rc8 {[%emt 0:00:26]} 18. Bb2 {[%emt 0:00:43]} Qb6 {[%emt 0:03:12]} 19. Rab1 {[%emt 0:11:41]} Qc5 {[%emt 0:05:35]} 20. Qd3 {[%emt 0:04:16]} Re6 {[%emt 0:03:13]} 21. Rfd1 {[%emt 0:05:05]} Rce8 {[%emt 0:03:00]} 22. Rd2 {[%emt 0:09:14]} Bh6 {[%emt 0:04:29]} 23. Rc2 {[%emt 0:01:18]} Re1+ {[%emt 0:08:51]} 24. Rxe1 {[%emt 0:01:23]} Rxe1+ {[%emt 0:00:06]} 25. Kh2 {[%emt 0:00:04]} Qc6 {[%emt 0:01:07]} 26. f3 {[%emt 0:00:44]} Bf4+ {[%emt 0:03:35]} 27. g3 {[%emt 0:00:08]} Re3 {[%emt 0:04:34]} 28. Qd1 {[%emt 0:01:15]} Be5 {[%emt 0:03:36]} 29. f4 {[%emt 0:00:07]} Bf6 {[%emt 0:04:40]} 30. Rd2 {[%emt 0:06:26]} Qe4 {[%emt 0:01:27]} 31. c4 {[%emt 0:10:24]} 0-1

[Event "URU-ch Semi Final 2020"]
[Site "Montevideo"]
[Date "2020.02.22"]
[Round "2.15"]
[White "Ruggiero, Alvaro"]
[Black "Nakle, Gonzalo"]
[Result "1-0"]
[ECO "B23"]
[WhiteElo "1843"]
[BlackElo "1675"]
[Annotator "NA"]
[PlyCount "133"]
[EventDate "2020.02.22"]
[EventType "swiss"]
[EventCountry "URU"]
[SourceTitle "playchess.com"]
[Source "ChessBase"]
[SourceQuality "1"]
[TimeControl "5400+30"]

1. e4 {[%emt 0:00:00]} c5 {[%emt 0:02:54]} 2. Nc3 {[%emt 0:00:00]} d6 {[%emt 0:00:52]} 3. f4 {[%emt 0:00:00]} g6 {[%emt 0:00:15]} 4. Bc4 {[%emt 0:00:05]} Bg7 {[%emt 0:00:06]} 5. Nf3 {[%emt 0:00:17]} Nc6 {[%emt 0:00:19]} 6. O-O {[%emt 0:00:21]} Nh6 {[%emt 0:00:15]} 7. d3 {[%emt 0:00:34]} O-O {[%emt 0:00:08]} 8. a3 {[%emt 0:01:30]} Ng4 {[%emt 0:00:09]} 9. Qe1 {[%emt 0:02:05]} Nd4 {[%emt 0:00:27]} 10. Nxd4 {[%emt 0:00:52]} cxd4 {[%emt 0:00:22]} 11. Ne2 {[%emt 0:00:34]} Qb6 {[%emt 0:00:40]} 12. Qg3 {[%emt 0:01:07]} Ne3 {[%emt 0:00:22]} 13. Bxe3 {[%emt 0:00:49]} dxe3 {[%emt 0:00:12]} 14. Rab1 {[%emt 0:00:34]} Qc5 {[%emt 0:00:12]} 15. c3 {[%emt 0:01:34]} b5 {[%emt 0:00:01]} 16. Bd5 {[%emt 0:00:58]} Rb8 {[%emt 0:00:12]} 17. d4 {[%emt 0:00:26]} Qb6 {[%emt 0:00:14]} 18. Qxe3 {[%emt 0:00:35]} e6 {[%emt 0:00:13]} 19. Bb3 {[%emt 0:00:58]} Bb7 {[%emt 0:00:07]} 20. Bc2 {[%emt 0:00:27]} e5 {[%emt 0:00:06]} 21. fxe5 {[%emt 0:00:49]} dxe5 {[%emt 0:00:09]} 22. Qf2 {[%emt 0:00:46]} a5 {[%emt 0:00:11]} 23. Rbd1 {[%emt 0:00:45]} b4 {[%emt 0:00:12]} 24. axb4 {[%emt 0:00:53]} axb4 {[%emt 0:00:07]} 25. d5 {[%emt 0:00:47]} Qxf2+ {[%emt 0:00:35]} 26. Rxf2 {[%emt 0:00:11]} bxc3 {[%emt 0:00:12]} 27. bxc3 {[%emt 0:00:12]} Bh6 {[%emt 0:00:07]} 28. Rff1 {[%emt 0:01:19]} Ba6 {[%emt 0:00:10]} 29. Bd3 {[%emt 0:00:34]} Bxd3 {[%emt 0:00:21]} 30. Rxd3 {[%emt 0:02:27]} Rb2 {[%emt 0:00:05]} 31. Ng3 {[%emt 0:01:19]} Rc8 {[%emt 0:00:28]} 32. d6 {[%emt 0:00:47]} Ra8 {[%emt 0:00:36]} 33. d7 {[%emt 0:01:16]} Bg5 {[%emt 0:00:07]} 34. Rfd1 {[%emt 0:01:43]} Bd8 {[%emt 0:00:05]} 35. R3d2 {[%emt 0:01:34]} Raa2 {[%emt 0:00:08]} 36. Rxb2 {[%emt 0:00:55]} Rxb2 {[%emt 0:00:05]} 37. h3 {[%emt 0:00:45]} Kf8 {[%emt 0:00:04]} 38. h4 {[%emt 0:03:49]} Ke7 {[%emt 0:00:17]} 39. Rd5 {[%emt 0:00:38]} f6 {[%emt 0:00:29]} 40. h5 {[%emt 0:00:16]} Rb7 {[%emt 0:00:08]} 41. Kf2 {[%emt 0:00:59]} Rxd7 {[%emt 0:00:07]} 42. Rxd7+ {[%emt 0:01:48]} Kxd7 {[%emt 0:00:08]} 43. Ke3 {[%emt 0:00:08]} Bb6+ {[%emt 0:00:02]} 44. Kd3 {[%emt 0:00:28]} Kc6 {[%emt 0:00:04]} 45. Kc4 {[%emt 0:00:21]} Bf2 {[%emt 0:00:24]} 46. hxg6 {[%emt 0:00:19]} hxg6 {[%emt 0:00:08]} 47. Ne2 {[%emt 0:00:35]} f5 {[%emt 0:00:09]} 48. Kd3 {[%emt 0:00:30]} Kc5 {[%emt 0:01:11]} 49. Nc1 {[%emt 0:00:33]} f4 {[%emt 0:04:37]} 50. Nb3+ {[%emt 0:00:36]} Kc6 {[%emt 0:00:20]} 51. Nd2 {[%emt 0:00:31]} Bc5 {[%emt 0:02:08]} 52. Nf3 {[%emt 0:00:31]} Bd6 {[%emt 0:00:24]} 53. Kc4 {[%emt 0:00:40]} Bb8 {[%emt 0:00:18]} 54. Ng5 {[%emt 0:01:01]} Bc7 {[%emt 0:02:35]} 55. Nf7 {[%emt 0:00:55]} Bb8 {[%emt 0:00:23]} 56. Nd8+ {[%emt 0:00:39]} Kd7 {[%emt 0:00:12]} 57. Nf7 {[%emt 0:01:14]} Ke7 {[%emt 0:00:57]} 58. Ng5 {[%emt 0:00:35]} Kf6 {[%emt 0:00:08]} 59. Nf3 {[%emt 0:00:20]} g5 {[%emt 0:00:01]} 60. Nh2 {[%emt 0:01:17]} Ke6 {[%emt 0:00:15]} 61. Kc5 {[%emt 0:01:35]} Bd6+ {[%emt 0:03:18]} 62. Kc6 {[%emt 0:00:22]} Ba3 {[%emt 0:00:08]} 63. c4 {[%emt 0:00:24]} Bb4 {[%emt 0:01:06]} 64. c5 {[%emt 0:01:10]} Ba3 {[%emt 0:00:24]} 65. Kb6 {[%emt 0:00:38]} Kd7 {[%emt 0:00:11]} 66. Ng4 {[%emt 0:00:21]} Bb2 {[%emt 0:00:05]} 67. Kb5 1-0

[Event "URU-ch Semi Final 2020"]
[Site "Montevideo"]
[Date "2020.02.22"]
[Round "2.16"]
[White "Miraballes Lopez, Andres"]
[Black "Zaruski, Julio"]
[Result "1-0"]
[ECO "C01"]
[WhiteElo "1676"]
[BlackElo "1822"]
[Annotator "NA"]
[PlyCount "103"]
[EventDate "2020.02.22"]
[EventType "swiss"]
[EventCountry "URU"]
[SourceTitle "playchess.com"]
[Source "ChessBase"]
[SourceQuality "1"]
[TimeControl "5400+30"]

1. e4 {[%emt 0:00:00]} e6 {[%emt 0:00:05]} 2. d4 {[%emt 0:00:08]} d5 {[%emt 0:00:11]} 3. exd5 {[%emt 0:01:39]} exd5 {[%emt 0:00:10]} 4. Nf3 {[%emt 0:00:02]} Bd6 {[%emt 0:00:37]} 5. c4 {[%emt 0:02:22]} c6 {[%emt 0:00:18]} 6. Nc3 {[%emt 0:00:09]} Ne7 {[%emt 0:00:12]} 7. cxd5 {[%emt 0:03:03]} cxd5 {[%emt 0:00:37]} 8. Bd3 {[%emt 0:03:12]} Nbc6 {[%emt 0:00:22]} 9. O-O {[%emt 0:01:35]} Bg4 {[%emt 0:00:09]} 10. Bc2 {[%emt 0:02:48]} h6 {[%emt 0:06:42]} 11. Re1 {[%emt 0:02:14]} O-O {[%emt 0:00:27]} 12. Be3 {[%emt 0:06:44]} Rc8 {[%emt 0:04:15]} 13. h3 {[%emt 0:01:16]} Bh5 {[%emt 0:08:14]} 14. Bb3 {[%emt 0:13:48]} Bb8 {[%emt 0:00:38]} 15. Qe2 {[%emt 0:07:54]} Re8 {[%emt 0:16:43]} 16. Bd1 {[%emt 0:04:09]} a6 {[%emt 0:02:44]} 17. Qd2 {[%emt 0:04:44]} Qd6 {[%emt 0:01:13]} 18. g3 {[%emt 0:07:16]} Qf6 {[%emt 0:13:01]} 19. Nh2 {[%emt 0:07:43]} Bxd1 {[%emt 0:01:26]} 20. Raxd1 {[%emt 0:00:15]} Rcd8 {[%emt 0:08:12]} 21. Ng4 {[%emt 0:02:36]} Qg6 {[%emt 0:00:31]} 22. Ne2 {[%emt 0:01:32]} Nf5 {[%emt 0:01:51]} 23. Qd3 {[%emt 0:12:40]} Nxe3 {[%emt 0:11:54]} 24. Qxg6 {[%emt 0:00:49]} fxg6 {[%emt 0:00:05]} 25. Nxe3 {[%emt 0:01:01]} Re4 {[%emt 0:02:13]} 26. Nc3 {[%emt 0:05:34]} Rxd4 {[%emt 0:00:26]} 27. Rxd4 {[%emt 0:00:45]} Nxd4 {[%emt 0:00:06]} 28. Rd1 {[%emt 0:00:18]} Ba7 {[%emt 0:00:46]} 29. Ncxd5 {[%emt 0:01:23]} Rf8 {[%emt 0:00:25]} 30. Nf4 {[%emt 0:02:19]} Kh7 {[%emt 0:00:18]} 31. Rxd4 {[%emt 0:01:09]} Bxd4 {[%emt 0:00:07]} 32. Ne6 {[%emt 0:00:06]} Bxe3 {[%emt 0:00:14]} 33. Nxf8+ {[%emt 0:00:05]} Kg8 {[%emt 0:00:08]} 34. fxe3 {[%emt 0:00:17]} Kxf8 {[%emt 0:00:09]} 35. Kf2 {[%emt 0:00:03]} Kf7 {[%emt 0:00:05]} 36. Kf3 {[%emt 0:00:14]} Ke6 {[%emt 0:00:37]} 37. Ke4 {[%emt 0:00:05]} g5 {[%emt 0:00:21]} 38. Kd4 {[%emt 0:00:30]} b6 {[%emt 0:00:59]} 39. e4 {[%emt 0:01:22]} Kd6 {[%emt 0:00:59]} 40. b4 {[%emt 0:01:43]} h5 {[%emt 0:00:19]} 41. e5+ {[%emt 0:00:15]} Ke6 {[%emt 0:00:05]} 42. a4 {[%emt 0:00:11]} h4 {[%emt 0:00:20]} 43. g4 {[%emt 0:00:16]} a5 {[%emt 0:03:40]} 44. b5 {[%emt 0:00:17]} g6 {[%emt 0:02:29]} 45. Ke4 {[%emt 0:00:08]} Ke7 {[%emt 0:00:16]} 46. Kd5 {[%emt 0:00:08]} Kd7 {[%emt 0:00:05]} 47. e6+ {[%emt 0:00:18]} Ke7 {[%emt 0:00:30]} 48. Ke5 {[%emt 0:00:34]} Ke8 {[%emt 0:00:12]} 49. Kd6 {[%emt 0:00:16]} Kd8 {[%emt 0:00:05]} 50. e7+ {[%emt 0:00:33]} Ke8 {[%emt 0:00:05]} 51. Kc7 {[%emt 0:00:29]} Kxe7 {[%emt 0:00:15]} 52. Kxb6 {[%emt 0:00:04]} 1-0